[Event "Titled Tuesday Blitz July 25 Early 2023"]
[White "Rios Escobar, Adan"]
[Black "Kuchava, Ana"]
[WhiteFideId "3403645"]
[BlackFideId "13605348"]
[WhiteElo "2408"]
[BlackElo "2222"]
[Result "1-0"]
[Round "5"]
[TimeControl "180+2"]
[Date "2023.07.25"]
[WhiteClock "0:00:21"]
[BlackClock "0:00:16"]
[Board "194"]

1. d4 {[%clk 0:02:47]}  d5 {[%clk 0:02:59]} 2. g3 {[%clk 0:02:46]}  Nf6 {[%clk 0:02:58]} 3. Nf3 {[%clk 0:02:46]}  Bf5 {[%clk 0:02:57]} 4. c4 {[%clk 0:02:46]}  c6 {[%clk 0:02:56]} 5. Nc3 {[%clk 0:02:46]}  e6 {[%clk 0:02:56]} 6. Nh4 {[%clk 0:02:47]}  Be4 {[%clk 0:02:50]} 7. f3 {[%clk 0:02:45]}  Bg6 {[%clk 0:02:50]} 8. Nxg6 {[%clk 0:02:44]}  hxg6 {[%clk 0:02:51]} 9. Qb3 {[%clk 0:02:43]}  Qb6 {[%clk 0:02:50]} 10. c5 {[%clk 0:02:42]}  Qxb3 {[%clk 0:02:50]} 11. axb3 {[%clk 0:02:42]}  Nbd7 {[%clk 0:02:49]} 12. b4 {[%clk 0:02:41]}  a6 {[%clk 0:02:44]} 13. b5 {[%clk 0:02:38]}  cxb5 {[%clk 0:02:44]} 14. Nxb5 {[%clk 0:02:38]}  O-O-O {[%clk 0:02:44]} 15. Nc3 {[%clk 0:02:37]}  Nb8 {[%clk 0:02:40]} 16. e3 {[%clk 0:02:30]}  Nc6 {[%clk 0:02:39]} 17. Be2 {[%clk 0:02:21]}  e5 {[%clk 0:02:34]} 18. dxe5 {[%clk 0:02:05]}  Nxe5 {[%clk 0:02:33]} 19. b4 {[%clk 0:02:06]}  d4 {[%clk 0:02:30]} 20. Na4 {[%clk 0:02:01]}  d3 {[%clk 0:02:15]} 21. Bd1 {[%clk 0:01:47]}  Nc4 {[%clk 0:02:03]} 22. Bd2 {[%clk 0:01:19]}  Nd5 {[%clk 0:01:53]} 23. Bb3 {[%clk 0:01:11]}  Ndxe3 {[%clk 0:01:43]} 24. Nb6+ {[%clk 0:01:04]}  Nxb6 {[%clk 0:01:41]} 25. Bxe3 {[%clk 0:01:05]}  Nd5 {[%clk 0:01:39]} 26. Bd2 {[%clk 0:00:57]}  Re8+ {[%clk 0:01:37]} 27. Kf1 {[%clk 0:00:48]}  Ne3+ {[%clk 0:01:35]} 28. Kf2 {[%clk 0:00:47]}  Nf5 {[%clk 0:01:22]} 29. Bf4 {[%clk 0:00:35]}  Re2+ {[%clk 0:01:18]} 30. Kf1 {[%clk 0:00:35]}  Rhxh2 {[%clk 0:01:13]} 31. Rxh2 {[%clk 0:00:34]}  Rxh2 {[%clk 0:01:14]} 32. Kg1 {[%clk 0:00:33]}  Rb2 {[%clk 0:01:07]} 33. Bxf7 {[%clk 0:00:30]}  g5 {[%clk 0:00:45]} 34. Be5 {[%clk 0:00:24]}  Ne3 {[%clk 0:00:38]} 35. Bxb2 {[%clk 0:00:22]}  d2 {[%clk 0:00:28]} 36. Bb3 {[%clk 0:00:22]}  Be7 {[%clk 0:00:16]} 37. Kf2 {[%clk 0:00:21]} 1-0


[Site "https://www.chess.com"]

[Event "Titled Tuesday Blitz July 25 Early 2023"]
[White "Al Mukhaini, Shima"]
[Black "Francisco_Ferrari"]
[WhiteFideId "22005854"]
[WhiteElo "2406"]
[BlackElo "2184"]
[Result "1-0"]
[Round "5"]
[TimeControl "180+2"]
[Date "2023.07.25"]
[WhiteClock "0:00:11"]
[BlackClock "0:00:09"]
[Board "196"]

1. b3 {[%clk 0:02:56]}  d5 {[%clk 0:02:56]} 2. Bb2 {[%clk 0:02:57]}  e6 {[%clk 0:02:56]} 3. e3 {[%clk 0:02:57]}  Nf6 {[%clk 0:02:57]} 4. f4 {[%clk 0:02:58]}  Be7 {[%clk 0:02:57]} 5. Nf3 {[%clk 0:02:59]}  O-O {[%clk 0:02:58]} 6. Bd3 {[%clk 0:03:00]}  Nbd7 {[%clk 0:02:56]} 7. O-O {[%clk 0:03:00]}  c5 {[%clk 0:02:56]} 8. Ne5 {[%clk 0:03:01]}  Ne4 {[%clk 0:02:33]} 9. Rf3 {[%clk 0:03:00]}  f6 {[%clk 0:02:19]} 10. Ng4 {[%clk 0:02:47]}  f5 {[%clk 0:01:58]} 11. Nh6+ {[%clk 0:01:58]}  gxh6 {[%clk 0:01:07]} 12. Bxe4 {[%clk 0:01:55]}  Bf6 {[%clk 0:01:08]} 13. Rg3+ {[%clk 0:01:46]}  Kh8 {[%clk 0:01:06]} 14. Bxf6+ {[%clk 0:01:05]}  Qxf6 {[%clk 0:01:04]} 15. Nc3 {[%clk 0:01:01]}  fxe4 {[%clk 0:00:54]} 16. Qh5 {[%clk 0:01:00]}  Nb6 {[%clk 0:00:44]} 17. Rf1 {[%clk 0:00:59]}  Bd7 {[%clk 0:00:43]} 18. a4 {[%clk 0:00:57]}  Be8 {[%clk 0:00:40]} 19. Qg4 {[%clk 0:00:55]}  Bg6 {[%clk 0:00:38]} 20. Nb5 {[%clk 0:00:50]}  Bf5 {[%clk 0:00:35]} 21. Qh5 {[%clk 0:00:50]}  Rg8 {[%clk 0:00:34]} 22. Rxg8+ {[%clk 0:00:42]}  Rxg8 {[%clk 0:00:35]} 23. Nxa7 {[%clk 0:00:42]}  Bg4 {[%clk 0:00:29]} 24. Qe5 {[%clk 0:00:41]}  Qxe5 {[%clk 0:00:27]} 25. fxe5 {[%clk 0:00:41]}  Be2 {[%clk 0:00:21]} 26. Rf6 {[%clk 0:00:37]}  Rg6 {[%clk 0:00:20]} 27. Rf7 {[%clk 0:00:35]}  Rg7 {[%clk 0:00:20]} 28. Rf6 {[%clk 0:00:35]}  Rg6 {[%clk 0:00:15]} 29. Rf7 {[%clk 0:00:31]}  Rg7 {[%clk 0:00:14]} 30. Rf2 {[%clk 0:00:29]}  Bd1 {[%clk 0:00:12]} 31. d3 {[%clk 0:00:21]}  exd3 {[%clk 0:00:12]} 32. cxd3 {[%clk 0:00:22]}  Bxb3 {[%clk 0:00:12]} 33. a5 {[%clk 0:00:22]}  Nd7 {[%clk 0:00:12]} 34. Rb2 {[%clk 0:00:19]}  c4 {[%clk 0:00:12]} 35. Nb5 {[%clk 0:00:18]}  Nxe5 {[%clk 0:00:12]} 36. dxc4 {[%clk 0:00:18]}  dxc4 {[%clk 0:00:12]} 37. Nd4 {[%clk 0:00:18]}  Nd3 {[%clk 0:00:12]} 38. Rb1 {[%clk 0:00:18]}  Ba4 {[%clk 0:00:08]} 39. Nxe6 {[%clk 0:00:18]}  c3 {[%clk 0:00:07]} 40. Nd4 {[%clk 0:00:07]}  c2 {[%clk 0:00:07]} 41. Nxc2 {[%clk 0:00:07]}  Bxc2 {[%clk 0:00:08]} 42. Rb5 {[%clk 0:00:07]}  Rc7 {[%clk 0:00:07]} 43. Rd5 {[%clk 0:00:06]}  Rc5 {[%clk 0:00:07]} 44. Rd8+ {[%clk 0:00:06]}  Kg7 {[%clk 0:00:07]} 45. Rd7+ {[%clk 0:00:06]}  Kf6 {[%clk 0:00:07]} 46. Rxb7 {[%clk 0:00:07]}  Rxa5 {[%clk 0:00:08]} 47. Rb6+ {[%clk 0:00:07]}  Ke5 {[%clk 0:00:08]} 48. h3 {[%clk 0:00:06]}  Ra1+ {[%clk 0:00:07]} 49. Kh2 {[%clk 0:00:07]}  Nf2 {[%clk 0:00:08]} 50. Rxh6 {[%clk 0:00:06]}  Ne4 {[%clk 0:00:08]} 51. Rxh7 {[%clk 0:00:06]}  Nf2 {[%clk 0:00:07]} 52. Rh5+ {[%clk 0:00:06]}  Ke4 {[%clk 0:00:08]} 53. Rc5 {[%clk 0:00:06]}  Bd3 {[%clk 0:00:05]} 54. Kg3 {[%clk 0:00:05]}  Kxe3 {[%clk 0:00:05]} 55. Re5+ {[%clk 0:00:05]}  Ne4+ {[%clk 0:00:06]} 56. Kh4 {[%clk 0:00:05]}  Rg1 {[%clk 0:00:06]} 57. g4 {[%clk 0:00:04]}  Kf4 {[%clk 0:00:06]} 58. Re8 {[%clk 0:00:04]}  Nf2 {[%clk 0:00:06]} 59. Rf8+ {[%clk 0:00:04]}  Ke3 {[%clk 0:00:04]} 60. Kh5 {[%clk 0:00:04]}  Be4 {[%clk 0:00:05]} 61. h4 {[%clk 0:00:03]}  Rxg4 {[%clk 0:00:04]} 62. Rxf2 {[%clk 0:00:02]}  Rf4 {[%clk 0:00:05]} 63. Rxf4 {[%clk 0:00:02]}  Kxf4 {[%clk 0:00:06]} 64. Kh6 {[%clk 0:00:02]}  Kg4 {[%clk 0:00:06]} 65. h5 {[%clk 0:00:03]}  Kf5 {[%clk 0:00:06]} 66. Kg7 {[%clk 0:00:04]}  Bd5 {[%clk 0:00:06]} 67. h6 {[%clk 0:00:04]}  Ke5 {[%clk 0:00:03]} 68. h7 {[%clk 0:00:05]}  Be4 {[%clk 0:00:04]} 69. h8=Q {[%clk 0:00:06]}  Bd5 {[%clk 0:00:05]} 70. Qh6 {[%clk 0:00:06]}  Be6 {[%clk 0:00:04]} 71. Qf6+ {[%clk 0:00:07]}  Kd5 {[%clk 0:00:04]} 72. Kg6 {[%clk 0:00:08]}  Kd6 {[%clk 0:00:05]} 73. Kg5 {[%clk 0:00:09]}  Kd7 {[%clk 0:00:05]} 74. Kf4 {[%clk 0:00:09]}  Kd6 {[%clk 0:00:06]} 75. Qe5+ {[%clk 0:00:10]}  Kd7 {[%clk 0:00:07]} 76. Qc5 {[%clk 0:00:09]}  Kd8 {[%clk 0:00:08]} 77. Ke5 {[%clk 0:00:09]}  Ke8 {[%clk 0:00:07]} 78. Kxe6 {[%clk 0:00:09]}  Kd8 {[%clk 0:00:08]} 79. Qe7+ {[%clk 0:00:09]}  Kc8 {[%clk 0:00:08]} 80. Kd6 {[%clk 0:00:10]}  Kb8 {[%clk 0:00:09]} 81. Kc6 {[%clk 0:00:11]}  Ka8 {[%clk 0:00:09]} 82. Qb7# {[%clk 0:00:11]} 1-0


[Site "https://www.chess.com"]

[Event "Titled Tuesday Blitz July 25 Early 2023"]
[White "Tqebuchava, Zurab"]
[Black "Nunez V, Gustavo Eduardo"]
[WhiteFideId "13601113"]
[BlackFideId "4403690"]
[WhiteElo "2208"]
[BlackElo "2406"]
[Result "0-1"]
[Round "5"]
[TimeControl "180+2"]
[Date "2023.07.25"]
[WhiteClock "0:00:00"]
[BlackClock "0:00:47"]
[Board "197"]

1. e4 {[%clk 0:03:00]}  c5 {[%clk 0:02:57]} 2. Nf3 {[%clk 0:03:01]}  Nc6 {[%clk 0:02:57]} 3. Bb5 {[%clk 0:03:02]}  g6 {[%clk 0:02:56]} 4. O-O {[%clk 0:03:02]}  Bg7 {[%clk 0:02:56]} 5. Bxc6 {[%clk 0:02:58]}  dxc6 {[%clk 0:02:50]} 6. h3 {[%clk 0:02:59]}  e5 {[%clk 0:02:49]} 7. Nc3 {[%clk 0:02:58]}  Qc7 {[%clk 0:02:49]} 8. d3 {[%clk 0:02:58]}  Nf6 {[%clk 0:02:48]} 9. Nh2 {[%clk 0:02:59]}  Nh5 {[%clk 0:02:47]} 10. Ne2 {[%clk 0:02:51]}  O-O {[%clk 0:02:42]} 11. Be3 {[%clk 0:02:35]}  b6 {[%clk 0:02:39]} 12. f4 {[%clk 0:02:31]}  exf4 {[%clk 0:02:35]} 13. Nxf4 {[%clk 0:02:31]}  Nxf4 {[%clk 0:02:25]} 14. Bxf4 {[%clk 0:02:29]}  Qe7 {[%clk 0:02:24]} 15. c3 {[%clk 0:02:16]}  Ba6 {[%clk 0:02:22]} 16. Qf3 {[%clk 0:02:13]}  Rad8 {[%clk 0:02:21]} 17. Rad1 {[%clk 0:02:08]}  Qe6 {[%clk 0:02:18]} 18. Bg5 {[%clk 0:01:58]}  f6 {[%clk 0:02:12]} 19. Bc1 {[%clk 0:01:43]}  Rfe8 {[%clk 0:02:11]} 20. Ng4 {[%clk 0:01:33]}  c4 {[%clk 0:02:06]} 21. d4 {[%clk 0:01:26]}  Qxe4 {[%clk 0:02:06]} 22. Nxf6+ {[%clk 0:01:17]}  Bxf6 {[%clk 0:02:05]} 23. Qxf6 {[%clk 0:01:10]}  Rf8 {[%clk 0:02:06]} 24. Qg5 {[%clk 0:01:07]}  Bb7 {[%clk 0:01:49]} 25. Rde1 {[%clk 0:01:02]}  Rxf1+ {[%clk 0:01:44]} 26. Rxf1 {[%clk 0:01:00]}  Re8 {[%clk 0:01:39]} 27. Bf4 {[%clk 0:00:42]}  c5 {[%clk 0:01:37]} 28. Be5 {[%clk 0:00:39]}  cxd4 {[%clk 0:01:28]} 29. cxd4 {[%clk 0:00:38]}  h6 {[%clk 0:01:22]} 30. Qg4 {[%clk 0:00:31]}  Qxg4 {[%clk 0:01:19]} 31. hxg4 {[%clk 0:00:32]}  Rf8 {[%clk 0:01:19]} 32. Rxf8+ {[%clk 0:00:31]}  Kxf8 {[%clk 0:01:20]} 33. Kf2 {[%clk 0:00:30]}  Kf7 {[%clk 0:01:12]} 34. g3 {[%clk 0:00:29]}  g5 {[%clk 0:01:10]} 35. Ke3 {[%clk 0:00:28]}  Bd5 {[%clk 0:01:07]} 36. Bb8 {[%clk 0:00:26]}  a6 {[%clk 0:01:07]} 37. a3 {[%clk 0:00:23]}  b5 {[%clk 0:01:02]} 38. Bc7 {[%clk 0:00:21]}  Be6 {[%clk 0:01:02]} 39. Kf3 {[%clk 0:00:18]}  Kg6 {[%clk 0:01:01]} 40. Be5 {[%clk 0:00:17]}  Bd5+ {[%clk 0:01:01]} 41. Ke3 {[%clk 0:00:16]}  h5 {[%clk 0:01:02]} 42. gxh5+ {[%clk 0:00:16]}  Kxh5 {[%clk 0:01:03]} 43. Bd6 {[%clk 0:00:15]}  Kg4 {[%clk 0:01:02]} 44. Be5 {[%clk 0:00:14]}  Kh3 {[%clk 0:01:01]} 45. Bd6 {[%clk 0:00:12]}  Kg2 {[%clk 0:01:01]} 46. Be5 {[%clk 0:00:09]}  a5 {[%clk 0:01:00]} 47. Bc7 {[%clk 0:00:08]}  g4 {[%clk 0:00:56]} 48. Bd6 {[%clk 0:00:04]}  b4 {[%clk 0:00:55]} 49. axb4 {[%clk 0:00:04]}  axb4 {[%clk 0:00:56]} 50. Be5 {[%clk 0:00:03]}  Kf1 {[%clk 0:00:50]} 51. Kd2 {[%clk 0:00:03]}  Kf2 {[%clk 0:00:50]} 52. Bf4 {[%clk 0:00:03]}  Kf3 {[%clk 0:00:49]} 53. Be5 {[%clk 0:00:03]}  Be4 {[%clk 0:00:49]} 54. Bf4 {[%clk 0:00:04]}  Bf5 {[%clk 0:00:47]} 55. Be5 {[%clk 0:00:04]}  Ke4 {[%clk 0:00:47]} 56. Bf6 {[%clk 0:00:03]}  Bd7 {[%clk 0:00:46]} 57. Be5 {[%clk 0:00:00]}  Ba4 {[%clk 0:00:47]} 0-1


[Site "https://www.chess.com"]

[Event "Titled Tuesday Blitz July 25 Early 2023"]
[White "coquitovich"]
[Black "Marn, Jan"]
[BlackFideId "14619245"]
[WhiteElo "2175"]
[BlackElo "2395"]
[Result "0-1"]
[Round "5"]
[TimeControl "180+2"]
[Date "2023.07.25"]
[WhiteClock "0:00:00"]
[BlackClock "0:01:21"]
[Board "198"]

1. Nf3 {[%clk 0:02:57]}  e6 {[%clk 0:02:57]} 2. g3 {[%clk 0:02:56]}  f5 {[%clk 0:02:56]} 3. Bg2 {[%clk 0:02:56]}  Nf6 {[%clk 0:02:57]} 4. O-O {[%clk 0:02:55]}  Be7 {[%clk 0:02:57]} 5. d3 {[%clk 0:02:53]}  O-O {[%clk 0:02:57]} 6. b3 {[%clk 0:02:28]}  c5 {[%clk 0:02:57]} 7. Bb2 {[%clk 0:02:28]}  Nc6 {[%clk 0:02:57]} 8. Nbd2 {[%clk 0:02:24]}  b6 {[%clk 0:02:57]} 9. e4 {[%clk 0:02:24]}  fxe4 {[%clk 0:02:55]} 10. Nxe4 {[%clk 0:02:25]}  Bb7 {[%clk 0:02:54]} 11. Neg5 {[%clk 0:02:19]}  h6 {[%clk 0:02:51]} 12. Nh3 {[%clk 0:02:19]}  Nd5 {[%clk 0:02:04]} 13. c4 {[%clk 0:02:13]}  Nc7 {[%clk 0:02:05]} 14. d4 {[%clk 0:02:07]}  Bf6 {[%clk 0:02:04]} 15. Nf4 {[%clk 0:01:55]}  Nxd4 {[%clk 0:01:54]} 16. Nxd4 {[%clk 0:01:54]}  Bxg2 {[%clk 0:01:52]} 17. Kxg2 {[%clk 0:01:53]}  cxd4 {[%clk 0:01:50]} 18. Bxd4 {[%clk 0:01:54]}  e5 {[%clk 0:01:50]} 19. Ng6 {[%clk 0:01:42]}  exd4 {[%clk 0:01:50]} 20. Nxf8 {[%clk 0:01:42]}  Qxf8 {[%clk 0:01:51]} 21. Qf3 {[%clk 0:01:35]}  Ne6 {[%clk 0:01:45]} 22. Rad1 {[%clk 0:01:31]}  Re8 {[%clk 0:01:35]} 23. Qd5 {[%clk 0:01:30]}  Qf7 {[%clk 0:01:33]} 24. f4 {[%clk 0:01:29]}  Nc5 {[%clk 0:01:32]} 25. Qf3 {[%clk 0:00:27]}  Re3 {[%clk 0:01:24]} 26. Qa8+ {[%clk 0:00:24]}  Qe8 {[%clk 0:01:24]} 27. Qd5+ {[%clk 0:00:20]}  Kh8 {[%clk 0:01:23]} 28. Rf2 {[%clk 0:00:20]}  Qe4+ {[%clk 0:01:22]} 29. Qxe4 {[%clk 0:00:20]}  Nxe4 {[%clk 0:01:23]} 30. Rff1 {[%clk 0:00:08]}  Re2+ {[%clk 0:01:22]} 31. Kf3 {[%clk 0:00:08]}  Re3+ {[%clk 0:01:22]} 32. Kg2 {[%clk 0:00:08]}  Nc3 {[%clk 0:01:22]} 33. Rde1 {[%clk 0:00:08]}  Rxe1 {[%clk 0:01:21]} 34. Rxe1 {[%clk 0:00:00]}  d3 {[%clk 0:01:21]} 0-1


[Site "https://www.chess.com"]

[Event "Titled Tuesday Blitz July 25 Early 2023"]
[White "Astafurov, Arseniy"]
[Black "Sanudula, K M Dahamdi"]
[WhiteFideId "24175218"]
[BlackFideId "9932470"]
[WhiteElo "2384"]
[BlackElo "2174"]
[Result "1-0"]
[Round "5"]
[TimeControl "180+2"]
[Date "2023.07.25"]
[WhiteClock "0:00:05"]
[BlackClock "0:01:16"]
[Board "200"]

1. c4 {[%clk 0:02:59]}  Nf6 {[%clk 0:02:59]} 2. Nc3 {[%clk 0:02:59]}  e6 {[%clk 0:03:00]} 3. e4 {[%clk 0:02:59]}  b6 {[%clk 0:02:57]} 4. e5 {[%clk 0:02:58]}  Ng8 {[%clk 0:02:56]} 5. Qf3 {[%clk 0:02:55]}  Nc6 {[%clk 0:02:54]} 6. Qg3 {[%clk 0:02:41]}  Nge7 {[%clk 0:02:47]} 7. Bd3 {[%clk 0:02:38]}  Bb7 {[%clk 0:02:46]} 8. Nf3 {[%clk 0:02:33]}  Nb4 {[%clk 0:02:43]} 9. Bb1 {[%clk 0:02:33]}  g6 {[%clk 0:02:36]} 10. a3 {[%clk 0:02:28]}  Nbc6 {[%clk 0:02:35]} 11. d4 {[%clk 0:02:05]}  Bg7 {[%clk 0:02:23]} 12. h4 {[%clk 0:01:12]}  d5 {[%clk 0:02:23]} 13. h5 {[%clk 0:00:36]}  dxc4 {[%clk 0:02:14]} 14. h6 {[%clk 0:00:37]}  Bf8 {[%clk 0:02:14]} 15. O-O {[%clk 0:00:21]}  Nf5 {[%clk 0:02:13]} 16. Bxf5 {[%clk 0:00:21]}  exf5 {[%clk 0:02:11]} 17. d5 {[%clk 0:00:12]}  Ne7 {[%clk 0:02:05]} 18. Bg5 {[%clk 0:00:06]}  Qd7 {[%clk 0:02:01]} 19. Rad1 {[%clk 0:00:04]}  O-O-O {[%clk 0:01:50]} 20. Bf6 {[%clk 0:00:04]}  Rg8 {[%clk 0:01:50]} 21. d6 {[%clk 0:00:02]}  cxd6 {[%clk 0:01:49]} 22. exd6 {[%clk 0:00:03]}  Nc6 {[%clk 0:01:49]} 23. Bxd8 {[%clk 0:00:04]}  Qxd8 {[%clk 0:01:50]} 24. Ng5 {[%clk 0:00:03]}  Qd7 {[%clk 0:01:49]} 25. Nxh7 {[%clk 0:00:03]}  Bxh6 {[%clk 0:01:48]} 26. Nf6 {[%clk 0:00:03]}  f4 {[%clk 0:01:47]} 27. Qf3 {[%clk 0:00:02]}  Qd8 {[%clk 0:01:46]} 28. d7+ {[%clk 0:00:02]}  Kb8 {[%clk 0:01:44]} 29. Nxg8 {[%clk 0:00:03]}  Qxg8 {[%clk 0:01:44]} 30. d8=Q+ {[%clk 0:00:03]}  Nxd8 {[%clk 0:01:42]} 31. Qh3 {[%clk 0:00:04]}  Bg7 {[%clk 0:01:41]} 32. Qd7 {[%clk 0:00:04]}  Nc6 {[%clk 0:01:39]} 33. Rfe1 {[%clk 0:00:04]}  Be5 {[%clk 0:01:34]} 34. Rxe5 {[%clk 0:00:04]}  Nxe5 {[%clk 0:01:34]} 35. Qd6+ {[%clk 0:00:04]}  Ka8 {[%clk 0:01:33]} 36. Qxe5 {[%clk 0:00:03]}  a6 {[%clk 0:01:33]} 37. Qd6 {[%clk 0:00:03]}  Qg7 {[%clk 0:01:30]} 38. Qxb6 {[%clk 0:00:03]}  Qf6 {[%clk 0:01:19]} 39. Rd8+ {[%clk 0:00:04]}  Qxd8 {[%clk 0:01:19]} 40. Qxd8+ {[%clk 0:00:05]}  Ka7 {[%clk 0:01:16]} 41. Qd4+ {[%clk 0:00:05]} 1-0


[Site "https://www.chess.com"]

[Event "Titled Tuesday Blitz July 25 Early 2023"]
[White "Wisniowski, Natalie"]
[Black "Tarasova, Viktoriya"]
[WhiteFideId "30929261"]
[BlackFideId "4175840"]
[WhiteElo "2139"]
[BlackElo "2383"]
[Result "0-1"]
[Round "5"]
[TimeControl "180+2"]
[Date "2023.07.25"]
[WhiteClock "0:00:07"]
[BlackClock "0:00:11"]
[Board "201"]

1. e4 {[%clk 0:03:00]}  e5 {[%clk 0:02:59]} 2. Nf3 {[%clk 0:02:59]}  Nc6 {[%clk 0:02:59]} 3. d4 {[%clk 0:02:56]}  exd4 {[%clk 0:02:59]} 4. Bc4 {[%clk 0:02:55]}  Bc5 {[%clk 0:02:59]} 5. Ng5 {[%clk 0:02:55]}  Nh6 {[%clk 0:02:54]} 6. Nxf7 {[%clk 0:02:43]}  Nxf7 {[%clk 0:02:42]} 7. Bxf7+ {[%clk 0:02:43]}  Kxf7 {[%clk 0:02:37]} 8. Qh5+ {[%clk 0:02:42]}  g6 {[%clk 0:02:37]} 9. Qxc5 {[%clk 0:02:41]}  d6 {[%clk 0:02:26]} 10. Qc4+ {[%clk 0:02:32]}  Be6 {[%clk 0:02:25]} 11. Qe2 {[%clk 0:02:29]}  Kg7 {[%clk 0:02:22]} 12. O-O {[%clk 0:02:24]}  Qd7 {[%clk 0:02:22]} 13. Bg5 {[%clk 0:02:09]}  h6 {[%clk 0:02:19]} 14. Bf4 {[%clk 0:02:06]}  Rae8 {[%clk 0:02:16]} 15. Nd2 {[%clk 0:02:03]}  Rhf8 {[%clk 0:02:08]} 16. Bg3 {[%clk 0:02:02]}  d5 {[%clk 0:01:40]} 17. exd5 {[%clk 0:01:51]}  Bxd5 {[%clk 0:01:34]} 18. Qb5 {[%clk 0:01:45]}  Rb8 {[%clk 0:01:11]} 19. Rfe1 {[%clk 0:01:31]}  a6 {[%clk 0:01:08]} 20. Qa4 {[%clk 0:01:26]}  Rbe8 {[%clk 0:01:04]} 21. Nb3 {[%clk 0:00:55]}  Rxe1+ {[%clk 0:00:16]} 22. Rxe1 {[%clk 0:00:54]}  Re8 {[%clk 0:00:17]} 23. Rxe8 {[%clk 0:00:30]}  Qxe8 {[%clk 0:00:17]} 24. h3 {[%clk 0:00:24]}  Qe4 {[%clk 0:00:12]} 25. f3 {[%clk 0:00:13]}  Qxc2 {[%clk 0:00:13]} 26. Kh2 {[%clk 0:00:05]}  d3 {[%clk 0:00:11]} 27. Qf4 {[%clk 0:00:02]}  Bxb3 {[%clk 0:00:09]} 28. axb3 {[%clk 0:00:02]}  Ne7 {[%clk 0:00:04]} 29. Qxc7 {[%clk 0:00:02]}  Qxc7 {[%clk 0:00:04]} 30. Bxc7 {[%clk 0:00:03]}  d2 {[%clk 0:00:04]} 31. Be5+ {[%clk 0:00:03]}  Kf7 {[%clk 0:00:05]} 32. Bc3 {[%clk 0:00:02]}  d1=Q {[%clk 0:00:05]} 33. Kg3 {[%clk 0:00:01]}  Qxb3 {[%clk 0:00:06]} 34. Kh2 {[%clk 0:00:02]}  Qc4 {[%clk 0:00:06]} 35. Kg3 {[%clk 0:00:02]}  b5 {[%clk 0:00:07]} 36. Kh2 {[%clk 0:00:03]}  b4 {[%clk 0:00:07]} 37. Be1 {[%clk 0:00:03]}  h5 {[%clk 0:00:08]} 38. Bg3 {[%clk 0:00:03]}  a5 {[%clk 0:00:08]} 39. Bf2 {[%clk 0:00:04]}  a4 {[%clk 0:00:09]} 40. Bg3 {[%clk 0:00:04]}  a3 {[%clk 0:00:10]} 41. bxa3 {[%clk 0:00:05]}  bxa3 {[%clk 0:00:10]} 42. Bd6 {[%clk 0:00:05]}  a2 {[%clk 0:00:11]} 43. Bg3 {[%clk 0:00:06]}  a1=Q {[%clk 0:00:11]} 44. Bf2 {[%clk 0:00:06]}  Qb2 {[%clk 0:00:11]} 45. Bg3 {[%clk 0:00:07]}  Qcc2 {[%clk 0:00:11]} 46. Kh1 {[%clk 0:00:07]}  Qxg2# {[%clk 0:00:11]} 0-1


[Site "https://www.chess.com"]

[Event "Titled Tuesday Blitz July 25 Early 2023"]
[White "djjohnnywoo"]
[Black "Qiao, Cindy"]
[BlackFideId "2620243"]
[WhiteElo "2139"]
[BlackElo "2377"]
[Result "0-1"]
[Round "5"]
[TimeControl "180+2"]
[Date "2023.07.25"]
[WhiteClock "0:00:00"]
[BlackClock "0:00:16"]
[Board "202"]

1. g3 {[%clk 0:03:00]}  d5 {[%clk 0:02:59]} 2. Bg2 {[%clk 0:03:00]}  Nf6 {[%clk 0:03:00]} 3. d3 {[%clk 0:03:01]}  e6 {[%clk 0:03:00]} 4. c3 {[%clk 0:03:01]}  Be7 {[%clk 0:03:00]} 5. Nd2 {[%clk 0:03:00]}  c5 {[%clk 0:03:01]} 6. e4 {[%clk 0:02:59]}  Nc6 {[%clk 0:02:59]} 7. Qe2 {[%clk 0:02:57]}  O-O {[%clk 0:02:57]} 8. e5 {[%clk 0:02:56]}  Nd7 {[%clk 0:02:57]} 9. Ngf3 {[%clk 0:02:56]}  b6 {[%clk 0:02:53]} 10. d4 {[%clk 0:02:55]}  a5 {[%clk 0:02:51]} 11. a4 {[%clk 0:02:37]}  Ba6 {[%clk 0:02:50]} 12. Qe3 {[%clk 0:02:34]}  cxd4 {[%clk 0:02:37]} 13. Nxd4 {[%clk 0:02:33]}  Ncxe5 {[%clk 0:02:32]} 14. Nb5 {[%clk 0:02:27]}  Bc5 {[%clk 0:02:19]} 15. Qe2 {[%clk 0:02:27]}  Rc8 {[%clk 0:01:58]} 16. Nb3 {[%clk 0:02:23]}  Nc4 {[%clk 0:01:55]} 17. N3d4 {[%clk 0:02:14]}  Re8 {[%clk 0:01:51]} 18. O-O {[%clk 0:02:07]}  Qf6 {[%clk 0:01:46]} 19. h4 {[%clk 0:02:01]}  h6 {[%clk 0:01:46]} 20. b3 {[%clk 0:01:45]}  Nd6 {[%clk 0:01:41]} 21. Qh5 {[%clk 0:01:14]}  Nxb5 {[%clk 0:01:37]} 22. axb5 {[%clk 0:01:11]}  Bb7 {[%clk 0:01:37]} 23. Be3 {[%clk 0:01:02]}  Bxd4 {[%clk 0:01:34]} 24. cxd4 {[%clk 0:01:00]}  Rc3 {[%clk 0:01:30]} 25. Rac1 {[%clk 0:00:47]}  Rec8 {[%clk 0:01:30]} 26. Rxc3 {[%clk 0:00:44]}  Rxc3 {[%clk 0:01:31]} 27. Re1 {[%clk 0:00:38]}  Qd8 {[%clk 0:01:25]} 28. Qg4 {[%clk 0:00:33]}  Nf6 {[%clk 0:01:24]} 29. Qf3 {[%clk 0:00:27]}  Qc8 {[%clk 0:01:21]} 30. Bh3 {[%clk 0:00:27]}  Rxb3 {[%clk 0:01:17]} 31. Qe2 {[%clk 0:00:26]}  Rc3 {[%clk 0:01:16]} 32. Qd2 {[%clk 0:00:26]}  Rc2 {[%clk 0:01:15]} 33. Qd3 {[%clk 0:00:26]}  Ne4 {[%clk 0:01:13]} 34. Bg2 {[%clk 0:00:25]}  Rc3 {[%clk 0:01:12]} 35. Qb1 {[%clk 0:00:24]}  Nf6 {[%clk 0:01:10]} 36. Bd2 {[%clk 0:00:22]}  Rc4 {[%clk 0:01:09]} 37. Rc1 {[%clk 0:00:20]}  Rxc1+ {[%clk 0:01:06]} 38. Bxc1 {[%clk 0:00:21]}  Qc4 {[%clk 0:01:04]} 39. Be3 {[%clk 0:00:20]}  Bc8 {[%clk 0:01:03]} 40. Bf3 {[%clk 0:00:19]}  Bd7 {[%clk 0:01:02]} 41. g4 {[%clk 0:00:20]}  Bxb5 {[%clk 0:01:01]} 42. g5 {[%clk 0:00:19]}  hxg5 {[%clk 0:01:00]} 43. hxg5 {[%clk 0:00:19]}  Ne8 {[%clk 0:00:57]} 44. g6 {[%clk 0:00:18]}  Nd6 {[%clk 0:00:48]} 45. Kg2 {[%clk 0:00:17]}  Nf5 {[%clk 0:00:46]} 46. gxf7+ {[%clk 0:00:16]}  Kxf7 {[%clk 0:00:47]} 47. Bg5 {[%clk 0:00:11]}  Qxd4 {[%clk 0:00:43]} 48. Qh1 {[%clk 0:00:08]}  Ke8 {[%clk 0:00:27]} 49. Qh8+ {[%clk 0:00:07]}  Kd7 {[%clk 0:00:26]} 50. Qb8 {[%clk 0:00:07]}  Nh4+ {[%clk 0:00:22]} 51. Bxh4 {[%clk 0:00:06]}  Qxh4 {[%clk 0:00:22]} 52. Qb7+ {[%clk 0:00:06]}  Ke8 {[%clk 0:00:22]} 53. Qxb6 {[%clk 0:00:06]}  Bd7 {[%clk 0:00:22]} 54. Qb8+ {[%clk 0:00:05]}  Kf7 {[%clk 0:00:21]} 55. Qe5 {[%clk 0:00:05]}  Qf6 {[%clk 0:00:20]} 56. Qd6 {[%clk 0:00:05]}  Qe7 {[%clk 0:00:20]} 57. Qe5 {[%clk 0:00:04]}  Qb4 {[%clk 0:00:20]} 58. Bh5+ {[%clk 0:00:04]}  Kg8 {[%clk 0:00:18]} 59. Qg5 {[%clk 0:00:04]}  Qf8 {[%clk 0:00:16]} 60. Qg6 {[%clk 0:00:04]}  a4 {[%clk 0:00:15]} 61. Bg4 {[%clk 0:00:03]}  Be8 {[%clk 0:00:14]} 62. Bxe6+ {[%clk 0:00:03]}  Bf7 {[%clk 0:00:15]} 63. Bxf7+ {[%clk 0:00:02]}  Qxf7 {[%clk 0:00:16]} 64. Qc6 {[%clk 0:00:03]}  d4 {[%clk 0:00:16]} 65. Qxa4 {[%clk 0:00:00]}  Qd5+ {[%clk 0:00:16]} 0-1


[Site "https://www.chess.com"]